Cogmind - Beta 15 @@@ ROGUE MODE // 2025.10.05 @ 20:24:00 Player: Grey Result: Self-destructed Performance ------------- Evolutions (3) 1500 Regions Visited (5) 1000 Robots Destroyed (46) 230 Value Destroyed (1710) 1710 Prototype IDs (2) 40 Alien Tech Used (0) 0 Bonus (0) 0 TOTAL SCORE: 4480 Bonus ------- None Cogmind --------- Core Integrity 522/700 Matter 300/300 Energy 21/100 System Corruption 5% Temperature Cool (0) Movement Rolling (115) Ox1 Location -7/Factory Parts ------- > --- POWER (1) -------- (None) > --- PROPULSION (4) --- Armored Huge Wheel > --- UTILITY (4) ------ Improved Heat Sink Large Storage Unit Improved Light Armor Plating > --- WEAPON (4) ------- Gatling Laser Autogun > --- INVENTORY (15) --- Nuclear Core Light Nuclear Core Armored Huge Wheel Armored Huge Wheel Large Storage Unit Medium Matter Pod (100) Reaction Control System Medium Armor Plating Improved Shield Generator Particle Gun Autogun Gauss Rifle Peak State ------------ > --- POWER ------------ Improved Deuterium Engine > --- PROPULSION ------- Armored Huge Wheel Armored Huge Wheel > --- UTILITY ---------- Improved Heat Sink Large Storage Unit Medium Armor Plating Improved Shield Generator > --- WEAPON ----------- Gatling Laser Autogun Shotgun Shotgun > --- INVENTORY -------- Nuclear Core Light Nuclear Core Armored Huge Wheel Armored Huge Wheel Large Storage Unit Medium Matter Pod Reaction Control System Medium Armor Plating Improved Light Armor Plating Improved Shield Generator Particle Gun Autogun Gauss Rifle [Rating: 44] Favorites ----------- Power Heavy Ion Engine Engine Heavy Ion Engine Power Core Nuclear Core Propulsion Armored Huge Wheel Wheel Armored Huge Wheel Utility Large Storage Unit Device Improved Heat Sink Storage Large Storage Unit Processor Advanced Visual Processing Unit Protection Medium Armor Plating Weapon Shotgun Energy Gun Particle Gun Ballistic Gun Shotgun Build | -11 -10 -9 -9 -8 -7 ------- Run | Yrd Mat Mat Min Mat Fac Slots Evolved 6 | . . 2 . 2 2 Power . | . . . . . . Propulsion 2 | . . . . . 2 Utility 2 | . . 1 . 1 . Weapon 2 | . . 1 . 1 . Parts Attached 34 | 5 5 5 1 10 8 Power 6 | 1 1 2 . 1 1 Engine 5 | 1 1 2 . . 1 Core 1 | . . . . 1 . Reactor . | . . . . . . Propulsion 4 | 2 . . . 1 1 Treads . | . . . . . . Leg . | . . . . . . Wheel 4 | 2 . . . 1 1 Hover . | . . . . . . Flight . | . . . . . . Utility 13 | 1 3 1 1 4 3 Device 6 | . 2 . 1 1 2 Storage 2 | 1 1 . . . . Processor 1 | . . . . 1 . Hackware . | . . . . . . Protection 4 | . . 1 . 2 1 Artifact . | . . . . . . Weapon 11 | 1 1 2 . 4 3 Energy Gun 3 | . 1 . . . 2 Energy Cannon . | . . . . . . Ballistic Gun 8 | 1 . 2 . 4 1 Ballistic Cannon . | . . . . . . Launcher . | . . . . . . Special Weapon . | . . . . . . Impact Weapon . | . . . . . . Slashing Weapon . | . . . . . . Piercing Weapon . | . . . . . . Special Melee Weapon . | . . . . . . Unidentified Prototypes 2 | . . 1 1 . . Parts Lost 15 | . 1 . 1 5 8 Power 2 | . . . . 1 1 Propulsion 3 | . . . 1 1 1 Utility 5 | . 1 . . 1 3 Weapon 5 | . . . . 2 3 Highest Loss Streak 6 | . 1 . 1 2 6 To Critical Strikes 1 | . . . . 1 . Average Backups 8 | 1 2 5 7 10 10 Power 1 | . 1 1 2 1 1 Propulsion 1 | . . . . 2 2 Utility 4 | . 1 1 2 6 6 Weapon 1 | . . 2 3 1 . Tool/Special . | . . . . . . Unused Backups 18 | . . 1 . 6 11 Power 7 | . . 1 . 4 2 Propulsion 3 | . . . . 1 2 Utility 6 | . . . . 1 5 Weapon 2 | . . . . . 2 Tool/Special . | . . . . . . Average Slot Usage (%) 88 | . 91 88 100 88 83 Engine 8 | . 14 11 11 8 3 Core 1 | . . . . . 3 Wheel 15 | . 28 22 22 8 15 Device 14 | . 12 11 11 15 15 Storage 9 | . 14 11 11 9 7 Protection 6 | . . 3 10 8 6 Energy Gun 2 | . 7 2 . . 5 Ballistic Gun 28 | . 14 28 33 35 24 Peak Build Rating 44 | 5 10 16 22 33 44 Average Rating 27 | 2 7 13 16 29 40 On Entrance 13 | . 5 10 16 15 32 Naked Turns . | . . . . . . Heaviest Build 55 | 10 30 40 40 52 55 Greatest Support 56 | 20 20 20 20 28 56 Greatest Overweight (x) 14 | . 1 1 3 14 . Average Overweight (x) . | . . 1 1 1 . Largest Inventory Capacity 15 | 8 15 15 15 15 15 Average Capacity 14 | 6 11 15 15 15 15 Most Carried 15 | 5 5 8 8 15 15 Average Carried 10 | 1 2 5 7 13 12 Final Capacity 15 | 8 15 15 15 15 15 Final Carried 14 | 1 4 7 7 13 14 Class Distribution -------------------- 67% | Tank 15% | Mutant 13% | Scavenger-Tank 3% | Gunner Dominant Class ---------------- Mutant | -10/Materials Gunner | -9/Materials Tank | -9/Mines Tank | -8/Materials Tank | -7/Factory Resources | -11 -10 -9 -9 -8 -7 ----------- Run | Yrd Mat Mat Min Mat Fac Matter Collected 1830 | 200 143 50 96 1010 331 Remotely . | . . . . . . Salvage Created 1686 | . 218 75 96 932 365 Parts 93 | . 17 5 3 46 22 Haulers Intercepted . | . . . . . . Recyclers Shooed 1 | . . . . 1 . Parts Field Recycled . | . . . . . . Retrieved Matter . | . . . . . . Parts Self-Destructed . | . . . . . . Prevented . | . . . . . . Kills | -11 -10 -9 -9 -8 -7 ------- Run | Yrd Mat Mat Min Mat Fac Combat Hostiles Destroyed 39 | . 5 1 2 21 10 Guns 39 | . 5 1 2 21 10 Classes Destroyed 9 | . 2 1 . 5 1 Worker 2 | . . . . 2 . Recycler 1 | . . . . 1 . Mechanic 1 | . . . . 1 . Watcher 3 | . 1 1 . 1 . Swarmer 6 | . . . . 3 3 Grunt 23 | . 5 . 2 12 4 Sentry 7 | . . 1 . 5 1 Hunter 1 | . . . . 1 . Programmer 2 | . . . . . 2 Best Kill Streak 10 | . 3 1 2 10 3 Combat Bots Only 9 | . 2 1 2 9 3 Max Kills in Single Turn 2 | . 1 1 1 2 1 Gunslinging 1 | . . . . 1 . Exploded . | . . . . . . Melee . | . . . . . . Uniques/NPCs Destroyed . | . . . . . . Combat | -11 -10 -9 -9 -8 -7 -------- Run | Yrd Mat Mat Min Mat Fac Hostile Shots Fired 298 | . 28 2 19 104 145 Missed 83 | . 4 . 3 23 53 Hits 215 | . 24 2 16 81 92 Projectile 215 | . 24 2 16 81 92 Critical Strikes 8 | . . . . 6 2 Part Disruptions 1 | . . . . . 1 Damage Taken 2428 | . 308 33 157 891 1039 Core 383 | . 87 33 19 66 178 Absorbed by Shields 570 | . . . . 315 255 Core Remaining (%) 85 | 100 65 . 87 88 . Volleys Fired 108 | . 19 4 3 55 27 Largest 4 | . 2 3 3 4 4 Hottest 146 | . 85 66 66 92 146 Shots Fired 368 | . 26 10 9 217 106 Gun 368 | . 26 10 9 217 106 Cannon . | . . . . . . Launcher . | . . . . . . Special . | . . . . . . Kinetic 340 | . 19 10 9 217 85 Thermal 28 | . 7 . . . 21 Explosive . | . . . . . . Electromagnetic . | . . . . . . Robot Hit Streak 11 | . 11 6 3 10 9 Robot Miss Streak 11 | . 2 3 3 7 11 Penetration Max . | . . . . . . Secondary Targets 3 | . . . . 2 1 Max Gunslinging Chain 1 | . . . . 1 1 Shots Hit Robots 239 | . 18 6 4 147 64 Core Hits 117 | . 9 3 4 72 29 Critical Kills 1 | . . . . 1 . Critical Parts Destroyed 1 | . 1 . . . . Critical Strikes 3 | . 1 . . 2 . Destroy 3 | . 1 . . 2 . Melee Attacks . | . . . . . . Impact . | . . . . . . Slashing . | . . . . . . Piercing . | . . . . . . Sneak Attacks . | . . . . . . Combat Hostiles . | . . . . . . Follow-up Attacks . | . . . . . . Damage Inflicted 3575 | . 240 92 78 2151 1014 Guns 3564 | . 240 92 78 2140 1014 Cannons . | . . . . . . Explosions . | . . . . . . Melee . | . . . . . . Ramming 11 | . . . . 11 . Kinetic 3133 | . 161 92 78 2140 662 Thermal 431 | . 79 . . . 352 Explosive . | . . . . . . Electromagnetic . | . . . . . . Impact . | . . . . . . Slashing . | . . . . . . Piercing . | . . . . . . Highest Corruption 5 | . . . . . 5 Average Corruption 2 | . . . . . 2 Corruption Purged . | . . . . . . Corruption Blocked . | . . . . . . Effects 5 | . . . . . 5 Heat Flow Errors 1 | . . . . . 1 Energy Discharges 1 | . . . . . 1 Data Loss (minor) 1 | . . . . . 1 Misfires 1 | . . . . . 1 Weapon Failures 1 | . . . . . 1 Overload Shots . | . . . . . . Overflow Damage . | . . . . . . Projectiles . | . . . . . . Explosions . | . . . . . . Melee . | . . . . . . Knockbacks . | . . . . . . Impact . | . . . . . . Kinetic . | . . . . . . Secondary . | . . . . . . Self-Inflicted Damage 5 | . . . . 5 . Shots . | . . . . . . Rammed 1 | . . . . 1 . Targets Rammed 1 | . . . . 1 . Kicked . | . . . . . . Crushed . | . . . . . . Highest Temperature 122 | . 60 . . 13 122 Average Temperature 35 | . 30 . . 5 42 Received Heat Transfer 799 | . 177 9 30 403 180 Siege Activations . | . . . . . . Martial Activations . | . . . . . . Shielding Activations . | . . . . . . Robots Disrupted . | . . . . . . Combat Hostiles . | . . . . . . Robots Corrupted . | . . . . . . Combat Hostiles . | . . . . . . Parts Fried . | . . . . . . Impact Corruptions . | . . . . . . Robots Melted . | . . . . . . Combat Hostiles . | . . . . . . Parts Melted 2 | . . . . . 2 Heat Transferred 957 | . 185 . . . 772 Parts Sabotaged . | . . . . . . Parts Stolen . | . . . . . . Parts Stripped . | . . . . . . Power Chain Reactions . | . . . . . . Alert | -11 -10 -9 -9 -8 -7 ------- Run | Yrd Mat Mat Min Mat Fac Maximum Alert Level 1 | . . . . 1 . Low Security (%) 94 | 100 100 100 100 85 100 Level 1 5 | . . . . 14 . Level 2 . | . . . . . . Level 3 . | . . . . . . Level 4 . | . . . . . . Level 5 . | . . . . . . High Security . | . . . . . . Max Security . | . . . . . . Peak Influence 268 | . 51 30 50 268 113 Initial 113 | . . 12 . . 113 Average 37 | . 20 6 10 53 42 Influence Increases 1015 | . 128 37 50 560 240 Destroy 0b10 Robot/C 780 | . 100 20 40 420 200 Destroy 0b10 Robot/NC 35 | . 5 5 . 25 . Destroy Leader 176 | . 22 12 10 92 40 Successful Hack 8 | . . . . 8 . Destroy Structure 1 | . 1 . . . . Lose Combat Pursuer 15 | . . . . 15 . Influence Decreases 1015 | . 98 67 50 310 490 Entered New Map 155 | . . 18 . . 137 Time Decay 756 | . 88 49 50 270 299 Lost Part 104 | . 10 . . 40 54 Squads Dispatched 4 | . 1 . . 1 2 Investigation . | . . . . . . Extermination 1 | . . . . . 1 Reinforcement 3 | . 1 . . 1 1 Assault . | . . . . . . Garrison . | . . . . . . Intercept . | . . . . . . Searches Triggered . | . . . . . . Construction Impeded . | . . . . . . Haulers Reinforced . | . . . . . . Active Scanning Responses . | . . . . . . Cargo Convoy Interrupts 1 | . . . . . 1 Stealth | -11 -10 -9 -9 -8 -7 --------- Run | Yrd Mat Mat Min Mat Fac Distress Signals 4 | . 1 . . 3 . Communications Jammed . | . . . . . . Distress Signals . | . . . . . . Times Spotted 79 | . 12 4 6 33 24 Peak Tracking Total 11 | . 3 3 4 11 11 Tactical Retreats 4 | . 3 . . 1 . Traps | -11 -10 -9 -9 -8 -7 ------- Run | Yrd Mat Mat Min Mat Fac Traps Triggered 1 | . . . . . 1 Indirectly . | . . . . . . Trap Hack Attempts . | . . . . . . Triggered . | . . . . . . Disarmed . | . . . . . . Reprogrammed . | . . . . . . Reused . | . . . . . . Traps Extracted . | . . . . . . Installed . | . . . . . . Triggered . | . . . . . . Machines | -11 -10 -9 -9 -8 -7 ---------- Run | Yrd Mat Mat Min Mat Fac Machines Disabled . | . . . . . . Max in Single Turn . | . . . . . . Machines Repaired . | . . . . . . Machines Dismantled . | . . . . . . Machines Sabotaged . | . . . . . . Overloaded Fab Kills . | . . . . . . Hacking | -11 -10 -9 -9 -8 -7 --------- Run | Yrd Mat Mat Min Mat Fac Machines Accessed 10 | . 1 . 1 5 3 Terminals 8 | . 1 . . 5 2 Fabricators . | . . . . . . Repair Stations 1 | . . . . . 1 Recycling Units . | . . . . . . Scanalyzers . | . . . . . . Garrison Access . | . . . . . . Total Hacks 19 | . 3 . 1 9 6 Successful 7 | . 1 . 1 4 1 Failed 12 | . 2 . . 5 5 Catastrophic 2 | . . . . 1 1 Database Lockouts . | . . . . . . Manual . | . . . . . . Terminals 17 | . 3 . . 9 5 Fabricators . | . . . . . . Repair Stations 1 | . . . . . 1 Recycling Units . | . . . . . . Scanalyzers . | . . . . . . Garrison Access . | . . . . . . Terminal Hacks 7 | . 1 . 1 4 1 Record 3 | . . . . 2 1 Open Door 1 | . . . 1 . . Locate Traps 2 | . 1 . . 1 . Maintenance Status 1 | . . . . 1 . Fabricator Hacks . | . . . . . . Repair Station Hacks . | . . . . . . Recycling Unit Hacks . | . . . . . . Scanalyzer . | . . . . . . Garrison Access Hacks . | . . . . . . Unauthorized Hacks . | . . . . . . Terminals . | . . . . . . Fabricators . | . . . . . . Repair Stations . | . . . . . . Recycling Units . | . . . . . . Scanalyzers . | . . . . . . Garrison Access . | . . . . . . Data Cores Recovered . | . . . . . . Used . | . . . . . . Hacking Detections 9 | . 1 . . 5 3 Full Trace Events 1 | . . . . 1 . Feedback Events . | . . . . . . Feedback Blocked . | . . . . . . Robot Schematics Acquired . | . . . . . . Robots Built . | . . . . . . Authchips . | . . . . . . Time . | . . . . . . Total Robot Build Rating . | . . . . . . Part Schematics Acquired . | . . . . . . Parts Built . | . . . . . . Authchips . | . . . . . . Time . | . . . . . . Total Part Build Rating . | . . . . . . Parts Repaired . | . . . . . . Time . | . . . . . . Parts Recycled . | . . . . . . Recycled Matter . | . . . . . . Retrieved Matter . | . . . . . . Retrieved Components . | . . . . . . Parts Scanalyzed . | . . . . . . Part Schematics Acquired . | . . . . . . Parts Damaged . | . . . . . . Bothacking | -11 -10 -9 -9 -8 -7 ------------ Run | Yrd Mat Mat Min Mat Fac Used RIF Installer . | . . . . . . Robots Hacked . | . . . . . . Non-combat . | . . . . . . Combat . | . . . . . . Robot Hacks Applied . | . . . . . . Relay Couplers Released . | . . . . . . Fabnet Peak Effective % . | . . . . . . Robots Rewired . | . . . . . . Allies Hacked . | . . . . . . Hacks Repelled . | . . . . . . Allies | -11 -10 -9 -9 -8 -7 -------- Run | Yrd Mat Mat Min Mat Fac Total Allies . | . . . . . . Largest Group . | . . . . . . Highest-Rated Group . | . . . . . . Highest-Rated Ally . | . . . . . . Total Orders . | . . . . . . Ally Attacks . | . . . . . . Total Damage . | . . . . . . Kills . | . . . . . . Allies Corrupted . | . . . . . . Allies Melted . | . . . . . . Intel | -11 -10 -9 -9 -8 -7 ------- Run | Yrd Mat Mat Min Mat Fac Active Infowar (turns) 536 | . 301 . . 235 . Optics 235 | . . . . 235 . ECM 301 | . 301 . . . . Robot Analysis Total . | . . . . . . Derelict Logs Recovered . | . . . . . . Drone Launches . | . . . . . . Drone Recoveries . | . . . . . . Exploration | -11 -10 -9 -9 -8 -7 ------------- Run | Yrd Mat Mat Min Mat Fac Turns Passed 2677 | 37 333 213 254 1085 755 Spaces Moved 1659 | 39 175 146 237 588 474 Core 25 | 16 . . . 9 . Treads . | . . . . . . Legs . | . . . . . . Wheels 1634 | 23 175 146 237 579 474 Hover . | . . . . . . Flight . | . . . . . . Fastest Speed 50 | 50 80 95 95 115 100 Average Speed 107 | 67 89 95 95 129 100 Slowest Speed 750 | 80 95 95 125 750 100 Overloaded Moves . | . . . . . . Propulsion Burnouts . | . . . . . . Robots Hopped . | . . . . . . Potential Cave-ins . | . . . . . . Cave-ins Triggered . | . . . . . . Exploration Rate (%) 25 | 3 26 17 50 43 14 Regions Visited 5 Branch Regions 1 Pre-discovered Areas . | . . . . . . Known Exits Taken . | . . . . . . Unknown Exits Taken 5 | 1 1 1 1 1 . Scrap Searched . | . . . . . . Spaces Dug . | . . . . . . Terrain Destroyed . | . . . . . . Melee . | . . . . . . Projectile . | . . . . . . AOE . | . . . . . . Terrain Rammed . | . . . . . . Walls Destroyed . | . . . . . . Machines Disabled . | . . . . . . Actions | -11 -10 -9 -9 -8 -7 --------- Run | Yrd Mat Mat Min Mat Fac Total 2311 | 48 324 212 257 780 690 Wait 445 | . 116 47 14 98 170 Move 1654 | 38 174 145 236 587 474 Hop . | . . . . . . Pick Up 50 | 5 8 8 1 20 8 Fast Attach 1 | 1 . . . . . Attach 20 | 4 3 2 . 7 4 Detach . | . . . . . . Swap 14 | . 2 3 2 3 4 Drop 18 | . 2 3 1 9 3 Fire 108 | . 19 4 3 55 27 Melee . | . . . . . . Ram 1 | . . . . 1 . Kick . | . . . . . . Crush . | . . . . . . Escape Stasis . | . . . . . . Rewire . | . . . . . . Trap . | . . . . . . Miscellaneous . | . . . . . . Route ------- -11/Scrapyard -10/Materials -9/Materials -9/Mines -8/Materials -7/Factory History --------- Turn | Location | Event 8 | -11/Scrapyard | Discovered new exit (range 16) 38 | -11/Scrapyard | Entered Materials 314 | -10/Materials | Discovered new exit (range 13) 316 | -10/Materials | Build established: Mutant 371 | -10/Materials | Entered another Materials area 371 | -9/Materials | Evolved 2 slots: Utility x1, Weapon x1 523 | -9/Materials | Discovered new exit (range 9) 584 | -9/Materials | Entered Mines 710 | -9/Mines | Met a Derelict bent on vengeance 721 | -9/Mines | Found the Drone Emporium 735 | -9/Mines | Found Prototype Device 739 | -9/Mines | Identified Splice Drone Bay 763 | -9/Mines | Discovered new exit (range 7) 823 | -9/Mines | Build established: Tank 838 | -9/Mines | Entered Materials 838 | -8/Materials | Evolved 2 slots: Utility x1, Weapon x1 1794 | -8/Materials | Destroyed 9 combat bots 1882 | -8/Materials | Discovered new exit (range 4) 1923 | -8/Materials | Entered Factory 1923 | -7/Factory | Evolved 2 slots: Propulsion x2 2616 | -7/Factory | Build established: Scavenger-Tank 2666 | -7/Factory | Cargo convoy interrupted 2678 | -7/Factory | Self-destructed Last Messages --------------- 02665_ H-55 Commando unfolds itself. 02665_ M-28 Smith unfolds itself. 02665_ C-30 ARC bursts open, deploying its payload. 02665_ X-67 Chaingunner unfolds itself. 02665_ P-60 Hacker unfolds itself. 02665_ X-57 Shotgunner unfolds itself. 02666_ ALERT: Cargo convoy interrupted, initiating access lockdown. 02669_ Shotgun destroyed. 02669_ Med. Armor Plating destroyed. 02672_ U-05 Engineer builds a Wall. 02673_ Slug penetrates Wall. 02673_ Imp. Shield Generator destroyed. 02674_ X-57 Shotgunner destroyed. 02676_ Slug penetrates Wall. 02676_ M-28 Smith repairs X-57 Shotgunner. 02677_ Shotgun destroyed. 02677_ Imp. Deuterium Engine destroyed. 02677_ Arm. Huge Wheel destroyed. Map ----- +----------------------------------------------------+ | ???????????????????????????????? #??# | | ??????????????????????????????? #??# | | ?????????????????????????????? ???# """"""" | | ?????????????????????????????# ? ???# """"""" | | ?????????????????????????????#? ???# """"""" | | ??????????????????????????????? ???# """"""" | | ??????????????????????????????? ???# | | ????????????????????????????? ???# | | ????????????????????????????? ???# | | ???????????????????????????? ?????# " | | ???????????????????????????? ????# """" | | ?????????????????????????????# ???# | | ?????????????????????????????# ##########+#### | | ?????????????????????????????# | | ?????????????????????????????# | | ?????????????????????????????# | | ?????????????????????????????# | | ?????????????????????????????# | | ????????????????################+#### ######## | | ????????????????? #?# #? | | ????????????????# """ """ """ """ #?# #? ! ! | | ????????????????# "Y """ """ """ #?# # | | ????????????????# """ """ """ """ #?# # | | ????????????????# r #?# + """""? | | ????????????????# #?# # """""? | | ????????????????# [ @ u #?# # """""? | | ????????????????#########/;#u######## #?"""""? | | ??????????????????????# %x #?####?? | | ????????????????? " [m [######## | | ???????????? + x = | | ??????????? ?# p ##### | | ??????????? ??# x hx #??????? | | ???????????? ???# ##########+######????? | | ???????????? ????#i #???# % #????? | | ????????????? ??????# x #???# #????? | | ????????????? ???????# % #???# / ? | | ??????????????????????# % #???# ###### | | ??????????????????????+ #???# #????? | | ??????????????????????# #???# #????? | | ??????????????????????# #???# #????? | | ??????????????????????# #???#############????? | | ?????????????????????? ????????????????????? | | ????????????????????? ?????????????????????? | | ????????????????????? ?????????????????????? | | ????????????????????? ??" ""?????????????????????? | | ?????????????????????????????????????????????????? | | ?????????????????????????????????????????????????? | | ?????????????????????????????????????????????????? | | ?????????????????????????????????????????????????? | | ?????????????????????????????????????????????????? | +----------------------------------------------------+ Best States ------------- Heat Dissipation 48 Energy Generation 16 Energy Capacity 290 Matter Stores 300 Matter Capacity 300 Sight Range 20 Terrain Scan Density 10 ECM Strength 1 Armor Coverage 225 Evasion (%) 50 Item Schematics ----------------- None Robot Schematics ------------------ None Fabricated ------------ Nothing Repaired ---------- Nothing Alien Tech Used ----------------- None Achievements -------------- None Challenges ------------ None Game ------ Seed BarrageWarpReactor Manual? 0 Play Time 00:34:10 Cumulative 17.2 hours Start 2025.10.05 @ 19:50:34 End 2025.10.05 @ 20:24:00 Sessions 1 Manual Loads 0 Difficulty Rogue Special Mode None Game No. 19 Rogue 19 Adventurer 0 Explorer 0 Win Type - Total 0 Types 0/0/0/0/0/0/0/0/0/0 Lore% 11 Gallery% 17 Achievement% 17 Wizard Run 0 Options --------- Layout 1 ASCII 0 Keyboard 0 Movement Mouse Keybinds 0 Fullscreen 1 Font 32/SmallcapsGlow Map View 50x35 Zoom Use 0% Tactical HUD 1 Map Filters NONE Filters NONE Steam 1 RUN: 9f4a7212-c219-4303-805e-ba2c560573f2